bitfinex-derivatives/quotes_SOLF0:USTF0_20241230
["timestamp","ask_amount","ask_price","bid_price","bid_amount"]
[1735591784018,3.0,195.61,195.56,3.98324828]
[1735591784318,3.0,195.61,195.57,3.98324828]
[1735591784518,3.0,195.61,195.58,3.98324828]
[1735591784715,3.0,195.61,195.55,8.04772207]
[1735591785016,3.0,195.61,195.56,3.98386196]
[1735591785220,3.0,195.61,195.57,3.98386196]
[1735591785420,3.0,195.61,195.58,3.98386196]
[1735591785716,3.0,195.61,195.55,8.04772207]
[1735591785917,3.0,195.61,195.56,3.98399216]
[1735591786216,3.0,195.61,195.57,3.98399216]
[1735591786416,3.0,195.61,195.58,3.98399216]
[1735591786615,3.0,195.61,195.55,8.04772207]
[1735591786813,3.0,195.61,195.56,3.98468506]
[1735591787009,3.0,195.61,195.57,3.98468506]
[1735591787219,3.0,195.61,195.55,8.04772207]
[1735591787220,3.0,195.61,195.58,3.98468506]
[1735591787417,3.0,195.61,195.55,8.04772207]
[1735591787610,3.0,195.61,195.56,3.98583007]
[1735591787810,3.0,195.61,195.57,3.98583007]
[1735591788012,3.0,195.61,195.55,8.04772207]
[1735591788215,3.0,195.61,195.56,3.98583008]
[1735591788521,3.0,195.61,195.57,3.98583008]
[1735591788716,3.0,195.61,195.55,8.04772207]
[1735591788918,3.0,195.61,195.56,3.98696856]
[1735591789120,3.0,195.61,195.57,3.98696856]
[1735591789318,3.0,195.61,195.55,8.04772207]
[1735591789618,3.0,195.61,195.56,3.98831057]
[1735591789817,3.0,195.61,195.57,3.98831057]
[1735591790019,3.0,195.61,195.55,8.04772207]
[1735591790219,3.0,195.61,195.56,3.98831057]
[1735591790420,3.0,195.61,195.57,3.98831057]
[1735591790614,3.0,195.61,195.58,3.98831057]
[1735591790921,3.0,195.61,195.55,8.04772207]
[1735591791122,8.04772207,195.6,195.53,315.68745433]
[1735591791421,8.04772207,195.6,195.54,3.98978864]
[1735591791621,8.04772207,195.6,195.55,3.98978864]
[1735591791817,8.04772207,195.6,195.56,3.98978864]
[1735591792018,8.04772207,195.6,195.57,3.98978864]
[1735591792218,8.04772207,195.6,195.53,11.16202207]
[1735591792418,8.04772207,195.6,195.54,3.99118939]
[1735591792622,3.0,195.59,195.57,8.04772207]
[1735591792822,3.0,195.59,195.58,3.99118939]
[1735591794113,3.0,195.59,195.57,8.04772207]
[1735591794313,3.0,195.59,195.58,3.9906663]
[1735591795214,8.04772207,195.64,195.58,3.9906663]
[1735591795415,3.0,195.63,195.59,3.9906663]
[1735591795621,3.0,195.63,195.6,3.9906663]
[1735591795817,3.0,195.63,195.57,8.04772207]
[1735591796016,3.0,195.63,195.58,3.9903988]
[1735591796215,3.0,195.63,195.59,3.9903988]
[1735591796418,3.0,195.63,195.6,3.9903988]
[1735591796627,3.0,195.63,195.57,8.04772207]
[1735591796825,3.0,195.63,195.58,3.99028835]
[1735591797022,3.0,195.63,195.59,3.99028835]
[1735591797224,3.0,195.63,195.6,3.99028835]
[1735591797422,3.0,195.63,195.57,8.04772207]
[1735591797624,3.0,195.63,195.58,3.99017618]
[1735591797625,8.04772207,195.62,195.58,3.99017618]
[1735591797823,8.04772207,195.62,195.59,3.99017618]
[1735591798021,8.04772207,195.62,195.55,499.03430966]
[1735591798226,8.04772207,195.62,195.56,3.99032459]
[1735591798433,8.04772207,195.62,195.57,3.99032459]
[1735591798726,8.04772207,195.62,195.58,3.99032459]
[1735591798922,8.04772207,195.62,195.55,8.04772207]
[1735591799122,8.04772207,195.62,195.56,3.9904681]
[1735591799429,8.04772207,195.62,195.57,3.9904681]
[1735591799730,8.04772207,195.62,195.58,3.9904681]
[1735591799922,8.04772207,195.62,195.59,3.9904681]
[1735591800227,8.04772207,195.62,195.55,8.04772207]
[1735591800228,8.04772207,195.6,195.53,315.68745433]
[1735591800417,8.04772207,195.58,195.54,3.9907824]
[1735591800620,3.0,195.57,195.55,3.9907824]
[1735591800816,3.0,195.57,195.53,312.57315433]
[1735591801024,3.0,195.57,195.54,3.99123846]
[1735591801227,8.04772207,195.56,195.55,3.99123846]
[1735591801728,8.04772207,195.56,195.52,312.57315433]
[1735591801928,8.04772207,195.54,195.52,312.57315433]
[1735591802130,11.04772207,195.57,195.52,312.57315433]
[1735591802324,11.04772207,195.57,195.53,3.9895472]
[1735591802524,11.04772207,195.57,195.52,312.57315433]
[1735591802727,8.04772207,195.55,195.53,3.98940529]
[1735591803023,8.04772207,195.55,195.48,2.8631]
[1735591803228,8.04772207,195.55,195.49,3.98939928]
[1735591803423,8.04772207,195.53,195.5,3.98939928]
[1735591803729,3.0,195.52,195.51,3.98939928]
[1735591804626,3.0,195.52,195.48,490.98658759]
[1735591804823,3.0,195.52,195.49,12.03385201]
[1735591805026,3.0,195.52,195.5,3.98612994]
[1735591805227,3.0,195.52,195.51,3.98596083]
[1735591805826,3.0,195.52,195.47,320.6208764]
[1735591806021,3.0,195.52,195.48,3.98500826]
[1735591806231,3.0,195.52,195.49,12.03273033]
[1735591806432,8.04772207,195.58,195.51,8.04772207]
[1735591806631,3.0,195.57,195.52,3.98406885]
[1735591806932,3.0,195.57,195.51,13.83322207]
[1735591807135,3.0,195.57,195.52,3.98392565]
[1735591807429,3.0,195.57,195.53,3.98385367]
[1735591807630,3.0,195.57,195.51,13.83322207]
[1735591807831,3.0,195.57,195.52,3.98362075]
[1735591808031,3.0,195.57,195.53,3.98362075]
[1735591808233,3.0,195.57,195.51,13.83322207]
[1735591808434,3.0,195.57,195.52,3.98355743]
[1735591808635,3.0,195.57,195.53,3.98355743]
[1735591808837,3.0,195.57,195.51,13.83322207]
[1735591809037,3.0,195.57,195.52,3.98345489]
[1735591809227,3.0,195.57,195.51,13.83322207]
[1735591809228,3.0,195.57,195.53,3.98345489]
[1735591809433,3.0,195.57,195.51,13.83322207]
[1735591809733,3.0,195.58,195.55,8.04772207]
[1735591809933,3.0,195.59,195.57,8.04772207]
[1735591810137,3.0,195.59,195.55,8.04772207]
[1735591810340,3.0,195.59,195.56,3.98284171]
[1735591810529,3.0,195.59,195.55,8.04772207]
[1735591810727,3.0,195.59,195.56,3.98311278]
[1735591810932,3.0,195.59,195.53,8.04772207]
[1735591811134,3.0,195.59,195.55,8.04772207]
[1735591811332,3.0,195.59,195.56,3.98325357]
[1735591811537,3.0,195.59,195.55,8.04772207]
[1735591811738,3.0,195.59,195.56,3.98322482]
[1735591811932,3.0,195.59,195.57,3.9832102]
[1735591812239,3.0,195.6,195.58,3.98304014]
[1735591812438,3.0,195.6,195.57,8.04772207]
[1735591812640,3.0,195.6,195.58,6.48229471]
[1735591812841,3.0,195.6,195.58,2.4994]
[1735591813448,5.00765369,195.62,195.58,2.4994]
[1735591813732,4.0335,195.78,195.59,8.04772207]
[1735591813940,8.04772207,195.66,195.6,3.98276688]
[1735591814134,3.0,195.65,195.59,8.04772207]
[1735591814442,3.0,195.65,195.61,8.04772207]
[1735591814641,3.0,195.65,195.62,3.98188395]
[1735591814841,3.0,195.65,195.61,8.04772207]
[1735591815044,3.0,195.65,195.62,3.98087561]
[1735591815346,3.0,195.65,195.63,8.04772207]
[1735591816035,3.0,195.66,195.63,8.04772207]
[1735591816239,3.0,195.68,195.63,8.04772207]
[1735591816437,8.04772207,195.73,195.65,8.04772207]
[1735591816641,3.0,195.72,195.67,8.04772207]
[1735591817037,3.0,195.72,195.65,8.04772207]
[1735591817343,3.0,195.72,195.66,3.97739562]
[1735591817549,3.0,195.72,195.65,8.04772207]
[1735591818845,8.04772207,195.73,195.67,8.04772207]
[1735591819047,3.0,195.72,195.67,8.04772207]
[1735591819444,8.04772207,195.75,195.69,8.04772207]
[1735591819740,3.0,195.74,195.69,8.04772207]
[1735591819947,8.04772207,195.77,195.71,8.04772207]
[1735591820141,3.0,195.76,195.71,8.04772207]
[1735591820350,8.04772207,195.77,195.69,8.04772207]
[1735591820550,3.0,195.76,195.69,8.04772207]
[1735591820947,8.04772207,195.77,195.69,8.04772207]
[1735591821145,3.0,195.76,195.69,8.04772207]
[1735591821450,3.0,195.76,195.69,10.77662207]
[1735591822350,3.0,195.76,195.69,2.7289]
[1735591826551,3.0,195.76,195.7,12.55182508]
[1735591827049,53.22,195.8,195.7,15.10982508]
[1735591827250,3.0,195.77,195.7,15.10982508]
[1735591827450,3.0,195.77,195.7,12.55182508]
[1735591828554,3.0,195.77,195.7,15.10982508]
[1735591831457,3.0,195.77,195.71,2.6294]
[1735591832158,3.0,195.79,195.71,2.6294]
[1735591832362,3.0,195.79,195.73,12.55182508]
[1735591832752,12.55182508,195.85,195.73,12.55182508]
[1735591832753,3.0,195.8,195.73,12.55182508]
[1735591833554,2.02882686,195.88,195.73,12.55182508]
[1735591833555,3.0,195.81,195.73,12.55182508]
[1735591834563,3.0,195.81,195.75,2.5573]
[1735591835358,3.0,195.81,195.73,12.55182508]
[1735591836262,3.0,195.81,195.74,2.5575]
[1735591838062,3.0,195.81,195.75,2.5574]
[1735591838263,3.0,195.81,195.76,2.6018]
[1735591840353,3.0,195.81,195.76,5.1591]
[1735591840655,2.02882686,195.88,195.76,15.15362508]
[1735591840859,2.02882686,195.88,195.79,15.10862508]
[1735591841156,3.0,195.87,195.79,12.55182508]
[1735591841468,53.18,195.92,195.83,2.5563]
[1735591841765,3.0,195.91,195.82,12.55182508]
[1735591842165,3.0,195.91,195.84,2.5562]
[1735591842464,8.01994249,195.93,195.86,8.01994249]
[1735591842663,3.0,195.92,195.86,8.01994249]
[1735591842863,8.01994249,195.91,195.86,8.01994249]
[1735591843064,8.01994249,195.93,195.86,8.01994249]
[1735591843358,3.0,195.92,195.86,10.57584249]
[1735591843964,3.0,195.92,195.86,8.01994249]
[1735591844666,8.01994249,195.89,195.82,8.01994249]
[1735591845065,8.01994249,195.89,195.8,8.01994249]
[1735591845265,8.01994249,195.87,195.8,8.01994249]
[1735591845463,8.01994249,195.85,195.79,28.46417498]
[1735591845662,8.01994249,195.83,195.79,28.46417498]
[1735591845869,3.0,195.82,195.79,28.46417498]
[1735591846371,3.0,195.82,195.78,8.01994249]
[1735591846766,3.0,195.82,195.8,8.01994249]
[1735591847369,3.0,195.82,195.78,8.01994249]
[1735591848972,3.0,195.82,195.8,8.01994249]
[1735591849369,8.01994249,195.85,195.8,8.01994249]
[1735591849571,3.0,195.84,195.8,8.01994249]
[1735591850263,11.01994249,195.84,195.77,36.48411747]
[1735591850865,8.01994249,195.82,195.77,28.46417498]
[1735591851376,8.01994249,195.82,195.76,39.08591747]
[1735591852474,3.0,195.84,195.76,10.62174249]
[1735591852672,3.0,195.84,195.78,8.01994249]
[1735591854973,8.01994249,195.85,195.78,8.01994249]
[1735591855172,3.0,195.84,195.78,8.01994249]
[1735591857278,8.01994249,195.85,195.78,10.57694249]
[1735591857580,3.0,195.84,195.78,10.57694249]
[1735591857780,8.01994249,195.85,195.78,10.57694249]
[1735591857975,3.0,195.84,195.78,10.57694249]
[1735591859881,8.01994249,195.83,195.76,181.40679245]
[1735591860084,8.01994249,195.81,195.77,3.96206789]
[1735591860395,8.01994249,195.79,195.76,170.78504996]
[1735591860581,3.0,195.78,195.76,170.78504996]
[1735591861785,3.0,195.78,195.75,8.01994249]
[1735591863484,3.0,195.78,195.76,3.96764353]
[1735591863686,3.0,195.78,195.75,8.01994249]
[1735591864785,3.0,195.78,195.73,178.80499245]
[1735591864984,3.0,195.78,195.74,3.96945614]
[1735591865177,3.0,195.78,195.73,178.80499245]
[1735591865381,3.0,195.78,195.74,3.9694698]
[1735591865681,3.0,195.78,195.73,8.01994249]
[1735591865881,3.0,195.78,195.74,3.97034675]
[1735591866184,8.01994249,195.77,195.72,170.78504996]
[1735591866382,8.01994249,195.75,195.72,170.78504996]
[1735591866682,8.01994249,195.73,195.72,170.78504996]
[1735591866887,11.01994249,195.73,195.72,167.96614996]
[1735591868082,11.01994249,195.73,195.65,85.39252497]
[1735591868278,8.01994249,195.71,195.66,3.97149218]
[1735591868482,3.0,195.73,195.65,85.39252497]
[1735591868483,8.01994249,195.69,195.65,85.39252497]
[1735591868683,3.0,195.68,195.65,85.39252497]
[1735591869085,8.01994249,195.67,195.64,85.39252497]
[1735591870287,8.01994249,195.67,195.61,28.46417498]
[1735591870487,8.01994249,195.67,195.62,3.96926717]
[1735591870686,8.01994249,195.67,195.61,28.46417498]
[1735591871095,8.01994249,195.65,195.61,28.46417498]
[1735591871283,8.01994249,195.65,195.61,7.11604374]
[1735591872685,8.01994249,195.65,195.58,7.11604374]
[1735591872993,8.01994249,195.63,195.58,7.11604374]
[1735591873195,3.0,195.62,195.58,7.11604374]
[1735591873394,8.01994249,195.61,195.58,7.11604374]
[1735591873584,8.01994249,195.59,195.58,7.11604374]
[1735591873991,8.01994249,195.59,195.56,28.46417498]
[1735591874193,3.0,195.62,195.56,28.46417498]
[1735591875290,3.0,195.62,195.53,7.5513]
[1735591875493,3.0,195.62,195.53,10.1116]
[1735591877089,12.57223702,195.63,195.53,10.1116]
[1735591877289,3.0,195.62,195.54,2.56]
[1735591877497,3.0,195.62,195.54,12.57223702]
[1735591877898,3.0,195.62,195.56,2.5598]
[1735591879796,3.0,195.62,195.54,12.57223702]
[1735591880095,3.0,195.62,195.53,36.01547498]
[1735591881097,3.0,195.62,195.53,7.5513]
[1735591881298,3.0,195.62,195.53,2.6289]
[1735591883097,12.57223702,195.6,195.53,2.6289]
[1735591885501,12.57223702,195.57,195.5,1.5538238]
[1735591885702,3.0,195.56,195.48,7.11604374]
[1735591886697,3.0,195.56,195.47,5.0057]
[1735591889508,3.0,195.56,195.48,2.5609]
[1735591890209,3.0,195.56,195.48,12.57223702]
[1735591891109,3.0,195.56,195.5,2.5607]
[1735591891503,3.0,195.56,195.47,5.0057]
[1735591893200,3.0,195.55,195.47,5.0057]
[1735591894611,12.57223702,195.57,195.47,5.0057]
[1735591894807,3.0,195.56,195.47,5.0057]
[1735591896307,8.05236943,195.53,195.47,5.0057]
[1735591898206,8.05236943,195.55,195.48,10.61326943]
[1735591898508,3.0,195.54,195.48,10.61326943]
[1735591900308,3.0,195.54,195.5,8.05236943]
[1735591902111,3.0,195.54,195.5,15.16841317]
[1735591902310,11.05236943,195.54,195.5,7.11604374]
[1735591902611,8.05236943,195.52,195.5,7.11604374]
[1735591903112,8.05236943,195.52,195.47,90.39822497]
[1735591904104,8.05236943,195.52,195.47,5.0057]
[1735591905011,8.05236943,195.52,195.47,90.39822497]
[1735591906215,8.05236943,195.52,195.47,5.0057]
[1735591908516,11.05236943,195.54,195.48,8.05236943]
[1735591910917,2.537,195.64,195.48,10.61326943]
[1735591911220,8.05236943,195.58,195.52,8.05236943]
[1735591911419,3.0,195.57,195.52,8.05236943]
[1735591912321,3.0,195.56,195.52,10.61276943]
[1735591912619,3.0,195.56,195.53,2.4196]
[1735591913414,8.05236943,195.58,195.53,2.4196]
[1735591913615,3.0,195.57,195.54,3.97075064]
[1735591913814,3.0,195.57,195.53,2.4196]
[1735591914016,3.0,195.57,195.54,3.97055085]
[1735591914219,3.0,195.57,195.53,2.4196]
[1735591914527,3.0,195.57,195.54,3.97064637]
[1735591914723,3.0,195.57,195.53,2.4196]
[1735591914925,3.0,195.57,195.54,3.97222516]
[1735591915222,3.0,195.57,195.53,2.4196]
[1735591915521,3.0,195.57,195.54,3.97222705]
[1735591915825,3.0,195.57,195.53,2.4196]
[1735591916015,3.0,195.57,195.54,3.97396291]
[1735591916220,3.0,195.57,195.53,2.4196]
[1735591916523,3.0,195.57,195.54,3.97396291]
[1735591916720,3.0,195.57,195.53,2.4196]
[1735591916918,3.0,195.57,195.54,3.97521142]
[1735591917224,3.0,195.57,195.53,2.4196]
[1735591917421,3.0,195.57,195.54,3.97520783]
[1735591917628,3.0,195.57,195.55,3.97520783]
[1735591917921,3.0,195.57,195.53,2.4196]
[1735591918221,3.0,195.57,195.54,3.97624959]
[1735591918522,3.0,195.57,195.53,2.4196]
[1735591918724,3.0,195.57,195.54,3.97729318]
[1735591918922,3.0,195.57,195.53,2.4196]
[1735591919118,3.0,195.57,195.54,3.97729318]
[1735591919322,3.0,195.57,195.53,2.4196]
[1735591919522,3.0,195.57,195.54,3.97729365]
[1735591919719,3.0,195.57,195.53,2.4196]
[1735591919923,3.0,195.57,195.54,3.97749338]
[1735591920123,3.0,195.57,195.53,2.4196]
[1735591920324,8.05236943,195.56,195.54,3.97749338]
[1735591920529,8.05236943,195.56,195.53,2.4196]
[1735591920725,8.05236943,195.54,195.51,312.36580615]
[1735591920931,8.05236943,195.54,195.52,3.97818769]
[1735591921230,8.05236943,195.54,195.51,21.32084141]
[1735591921430,8.05236943,195.52,195.49,312.36580615]
[1735591921633,3.0,195.51,195.5,3.97829437]
[1735591921935,3.0,195.51,195.49,312.36580615]
[1735591922532,3.0,195.51,195.5,3.97988313]
[1735591924244,3.0,195.51,195.48,2.6613]
[1735591924434,3.0,195.51,195.49,3.98163139]
[1735591924634,3.0,195.51,195.48,2.6613]
[1735591924838,3.0,195.51,195.49,3.98342131]
[1735591925035,3.0,195.51,195.48,2.6613]
[1735591925329,3.0,195.51,195.49,3.9834213]
[1735591925531,3.0,195.51,195.48,2.6613]
[1735591925736,3.0,195.51,195.49,3.98441964]
[1735591925928,3.0,195.51,195.5,3.9843073]
[1735591926538,3.0,195.53,195.5,3.9843073]
[1735591926738,3.0,195.53,195.51,3.9843073]
[1735591927038,11.05236943,195.53,195.48,2.6613]
[1735591927241,11.05236943,195.53,195.49,3.98538737]
[1735591927442,11.05236943,195.53,195.5,3.98538737]
[1735591927642,8.05236943,195.51,195.48,173.23900178]
[1735591927842,8.05236943,195.51,195.49,3.98643805]
[1735591928045,8.05236943,195.51,195.5,3.98643805]
[1735591929444,11.05236943,195.53,195.5,3.98643805]
[1735591929640,11.05236943,195.53,195.51,3.98643805]
[1735591929841,11.05236943,195.53,195.48,2.6613]
[1735591930037,11.05236943,195.53,195.49,3.98785575]
[1735591930242,11.05236943,195.53,195.5,3.98785575]
[1735591930541,3.0,195.53,195.51,3.98785575]
[1735591930746,8.05236943,195.51,195.48,2.6613]
[1735591931040,8.05236943,195.51,195.49,3.98870918]
[1735591931241,8.05236943,195.51,195.5,3.98870918]
[1735591933241,8.05236943,195.51,195.5,3.98869062]
[1735591933642,8.05236943,195.51,195.47,312.36580615]
[1735591933842,8.05236943,195.51,195.48,3.98869871]
[1735591934143,3.0,195.53,195.49,3.98869871]
[1735591934339,3.0,195.53,195.45,312.36580615]
[1735591934541,3.0,195.53,195.46,3.98848746]
[1735591934742,8.05236943,195.5,195.47,3.98848746]
[1735591934942,8.05236943,195.5,195.48,3.98848746]
[1735591935241,8.05236943,195.5,195.45,312.36580615]
[1735591935441,8.05236943,195.5,195.43,180.97503326]
[1735591935442,8.05236943,195.5,195.46,3.98845564]
[1735591935642,8.05236943,195.5,195.47,3.98845564]
[1735591935845,8.05236943,195.5,195.48,3.98845564]
[1735591936142,8.05236943,195.5,195.44,320.41817558]
[1735591936352,8.05236943,195.5,195.45,3.98780843]
[1735591936550,8.05236943,195.5,195.46,3.98780843]
[1735591936744,8.05236943,195.5,195.47,3.98780843]
[1735591937039,8.05236943,195.5,195.48,3.98780843]
[1735591937243,8.05236943,195.5,195.49,3.98780843]
[1735591939148,8.05236943,195.5,195.45,170.57770178]
[1735591939349,8.05236943,195.5,195.46,3.98720765]
[1735591939549,8.05236943,195.5,195.47,3.98720765]
[1735591939748,8.05236943,195.5,195.48,3.98720765]
[1735591939945,8.05236943,195.5,195.45,170.57770178]
[1735591940145,8.05236943,195.5,195.46,3.98713472]
[1735591940445,8.05236943,195.5,195.47,3.98713472]
[1735591940639,8.05236943,195.5,195.48,3.98713472]
[1735591940844,8.05236943,195.5,195.44,178.63007121]
[1735591941040,8.05236943,195.5,195.45,3.98687465]
[1735591941247,8.05236943,195.5,195.46,3.98687465]
[1735591941447,8.05236943,195.5,195.47,3.98687465]
[1735591941647,8.05236943,195.5,195.48,3.98687465]
[1735591941948,8.05236943,195.5,195.44,178.63007121]
[1735591942149,8.05236943,195.5,195.45,3.98652981]
[1735591942345,8.05236943,195.5,195.46,3.98652981]
[1735591942549,8.05236943,195.5,195.47,3.98652981]
[1735591942850,8.05236943,195.5,195.44,178.63007121]
[1735591943053,8.05236943,195.5,195.45,3.98618354]
[1735591943249,8.05236943,195.5,195.46,3.98618354]
[1735591943449,8.05236943,195.5,195.47,3.98618354]
[1735591943653,8.05236943,195.5,195.44,178.63007121]
[1735591943955,8.05236943,195.5,195.45,3.98586785]
[1735591944252,8.05236943,195.5,195.46,3.98586785]
[1735591944552,8.05236943,195.5,195.47,3.98586785]
[1735591944746,8.05236943,195.5,195.44,178.63007121]
[1735591944944,8.05236943,195.5,195.45,3.98554345]
[1735591945143,8.05236943,195.5,195.46,3.98554345]
[1735591945348,8.05236943,195.5,195.47,3.98555928]
[1735591945545,8.05236943,195.5,195.44,178.63007121]
[1735591945755,8.05236943,195.5,195.45,3.98553917]
[1735591946056,8.05236943,195.5,195.46,3.98553917]
[1735591946249,8.05236943,195.5,195.47,3.98553917]
[1735591946451,8.05236943,195.5,195.44,178.63007121]
[1735591946751,8.05236943,195.5,195.45,3.98537806]
[1735591946949,8.05236943,195.5,195.46,3.98537806]
[1735591947151,8.05236943,195.5,195.47,3.98537806]
[1735591947454,8.05236943,195.5,195.44,170.57770178]
[1735591947755,8.05236943,195.5,195.45,3.98513582]
[1735591947959,8.05236943,195.5,195.46,3.98513582]
[1735591948255,8.05236943,195.5,195.47,3.98513582]
[1735591948453,3.84283113,195.64,195.46,8.05236943]
[1735591948654,12.39933527,195.65,195.48,8.05236943]
[1735591948850,8.05236943,195.55,195.5,8.05236943]
[1735591949057,3.0,195.54,195.51,3.98495192]
[1735591949255,3.0,195.54,195.5,8.05236943]
[1735591949457,3.0,195.54,195.51,3.98454344]
[1735591949656,3.0,195.54,195.52,3.98454344]
[1735591949857,3.0,195.54,195.5,8.05236943]
[1735591950152,3.0,195.54,195.51,3.98425429]
[1735591950352,8.05236943,195.53,195.52,3.98425429]
[1735591950655,8.05236943,195.53,195.49,2.6593]
[1735591950852,8.05236943,195.5,195.47,170.57770178]
[1735591951156,3.0,195.49,195.48,3.9847221]
[1735591951358,3.0,195.49,195.48,174.56254863]
[1735591951748,3.0,195.49,195.48,170.57770178]
[1735591951961,3.0,195.49,195.48,174.56249112]
[1735591952656,3.0,195.49,195.48,3.98478934]
[1735591953764,3.0,195.49,195.48,3.98467632]
[1735591953965,3.0,195.49,195.44,312.36580615]
[1735591954154,8.05236943,195.48,195.45,3.98476712]
[1735591954360,3.0,195.49,195.46,3.98476712]
[1735591954558,8.05236943,195.55,195.47,12.03713655]
[1735591954760,3.0,195.54,195.49,8.05236943]
[1735591954959,3.0,195.54,195.5,3.98476712]
[1735591955254,8.05236943,195.53,195.51,3.98476712]
[1735591955453,8.05236943,195.53,195.47,8.05236943]
[1735591955757,8.05236943,195.53,195.48,6.57985603]
[1735591955953,3.0,195.54,195.49,14.70672546]
[1735591956157,3.0,195.54,195.5,3.98425603]
[1735591956362,3.0,195.54,195.51,3.98425603]
[1735591956663,3.0,195.54,195.49,13.26246943]
[1735591956860,3.0,195.54,195.5,3.9843365]
[1735591957064,3.0,195.54,195.51,3.9843365]
[1735591957259,3.0,195.54,195.49,13.26246943]
[1735591957461,8.05236943,195.53,195.5,3.98437851]
[1735591957660,8.05236943,195.51,195.49,2.6701]
[1735591957960,8.05236943,195.51,195.5,3.98474198]
[1735591958465,8.05236943,195.51,195.47,312.36580615]
[1735591958665,8.05236943,195.49,195.48,3.98525145]
[1735591958868,11.05236943,195.49,195.48,3.98525145]
[1735591959365,11.05236943,195.49,195.47,312.36580615]
[1735591959664,11.05236943,195.49,195.48,3.9859744]
[1735591959856,11.05236943,195.49,195.45,312.36580615]
[1735591960058,8.05236943,195.47,195.46,3.98600146]
[1735591960261,8.05236943,195.47,195.45,312.36580615]
[1735591960457,8.05236943,195.47,195.46,3.98600416]
[1735591960861,8.05236943,195.47,195.46,3.98648096]
[1735591961259,8.05236943,195.47,195.44,312.36580615]
[1735591961461,3.0,195.49,195.44,312.36580615]
[1735591961462,8.05236943,195.45,195.44,312.36580615]
[1735591961668,8.05236943,195.45,195.44,316.35237821]
[1735591961863,8.05236943,195.45,195.44,3.98657206]
[1735591962161,8.05236943,195.45,195.43,312.36580615]
[1735591962364,3.0,195.44,195.43,312.36580615]
[1735591962568,3.0,195.44,195.43,316.35343454]
[1735591963167,3.0,195.44,195.43,3.98762839]
[1735591966265,3.0,195.44,195.41,170.57770178]
[1735591966466,3.0,195.44,195.42,3.96766918]
[1735591966765,3.0,195.44,195.43,3.96766918]
[1735591969867,3.0,195.44,195.43,3.96622104]
[1735591974268,11.05236943,195.44,195.43,3.96622104]
[1735591974672,11.05236943,195.44,195.4,170.57770178]
[1735591974871,8.05236943,195.41,195.4,170.57770178]
[1735591975071,8.05236943,195.41,195.4,174.5438982]
[1735591976172,8.05236943,195.41,195.4,3.96619642]
[1735591978079,8.05236943,195.41,195.38,2.4481]
[1735591978277,8.05236943,195.41,195.39,3.96435311]
[1735591978477,8.05236943,195.41,195.38,2.4481]
[1735591978678,8.05236943,195.41,195.39,3.96358608]
[1735591978975,8.05236943,195.41,195.4,3.96336266]
[1735591979378,8.05236943,195.41,195.38,2.4481]
[1735591979579,8.05236943,195.41,195.39,3.96267846]
[1735591979770,8.05236943,195.41,195.4,3.96267846]
[1735591980380,8.05236943,195.41,195.37,85.29433614]
[1735591980579,8.05236943,195.39,195.38,3.96251075]
[1735591980882,11.07236943,195.39,195.38,3.96251075]
[1735591981076,11.07236943,195.39,195.38,3.9625119]
[1735591981476,11.07236943,195.39,195.37,85.29433614]
[1735591982279,11.07236943,195.39,195.35,85.29433614]
[1735591982477,8.05236943,195.37,195.35,85.29433614]
[1735591983682,8.05236943,195.37,195.3,85.29433614]
[1735591983874,8.05236943,195.32,195.3,85.29433614]
[1735591984081,3.02,195.31,195.3,85.29433614]
[1735591984781,3.02,195.31,195.28,30.98025905]
[1735591985685,3.02,195.31,195.28,9.65941764]
[1735591986885,3.02,195.34,195.3,8.05236943]
[1735591987690,3.02,195.34,195.32,8.05236943]
[1735591988291,3.02,195.34,195.28,30.98025905]
[1735591988590,3.02,195.34,195.3,8.05236943]
[1735591988788,3.02,195.34,195.28,39.03262848]
[1735591989190,8.05236943,195.33,195.28,39.03262848]
[1735591989491,8.05236943,195.33,195.28,17.71178707]
[1735591990189,8.05236943,195.33,195.28,2.5415]
[1735591991289,8.05236943,195.31,195.28,2.5415]
[1735591992994,3.02,195.3,195.28,2.5415]
[1735591997499,3.02,195.3,195.23,31.07695905]
[1735591997699,3.02,195.3,195.23,41.38112848]